Cogmind - Beta 10.1 @@@ ROGUE MODE // 2020.09.23 @ 22:50:28 // Halloween2019/Abominations Player: HOTSOUP Result: Destroyed by Minor Abomination with Pulse Rifle Performance ------------- Evolutions (2) 1000 Regions Visited (3) 600 Robots Destroyed (1) 5 Value Destroyed (6) 6 Prototype IDs (0) 0 Alien Tech Used (0) 0 Bonus (0) 0 TOTAL SCORE: 1611 Bonus ------- None Cogmind --------- Core Integrity 0/550 Matter 274/300 Energy 99/100 System Corruption 1% Temperature Cool (18) Movement Core (50) Location -8/Materials Parts ------- > --- POWER (1) -------- (None) > --- PROPULSION (2) --- (None) > --- UTILITY (6) ------ (None) > --- WEAPON (2) ------- (None) > --- INVENTORY (4) ---- (None) Peak State ------------ > --- POWER ------------ Ion Engine > --- PROPULSION ------- (None) > --- UTILITY ---------- Hacking Suite Hacking Suite Hacking Suite Hacking Suite > --- WEAPON ----------- Light Cannon > --- INVENTORY -------- (None) [Rating: 14] Favorites ----------- Power Ion Engine Engine Ion Engine Propulsion None Utility Hacking Suite Device Advanced Sensor Array Hackware Hacking Suite Weapon Light Cannon Ballistic Cannon Light Cannon Build | -11 -10 -9 -8 ------- Run | Scr Mat Mat Mat Slots Evolved 4 | . . 2 2 Power . | . . . . Propulsion . | . . . . Utility 4 | . . 2 2 Weapon . | . . . . Parts Attached 8 | . 1 5 2 Power 1 | . . 1 . Engine 1 | . . 1 . Core . | . . . . Reactor . | . . . . Propulsion . | . . . . Treads . | . . . . Leg . | . . . . Wheel . | . . . . Hover . | . . . . Flight . | . . . . Utility 6 | . . 4 2 Device 2 | . . . 2 Storage . | . . . . Processor . | . . . . Hackware 4 | . . 4 . Protection . | . . . . Artifact . | . . . . Weapon 1 | . 1 . . Energy Gun . | . . . . Energy Cannon . | . . . . Ballistic Gun . | . . . . Ballistic Cannon 1 | . 1 . . Launcher . | . . . . Special Weapon . | . . . . Impact Weapon . | . . . . Slashing Weapon . | . . . . Piercing Weapon . | . . . . Special Melee Weapon . | . . . . Unidentified Prototypes . | . . . . Parts Lost 4 | . . 2 2 Power 1 | . . 1 . Propulsion . | . . . . Utility 3 | . . 1 2 Weapon . | . . . . Highest Loss Streak 2 | . . 1 2 Average Slot Usage (%) 33 | . 8 55 27 Engine 4 | . . 10 . Device 2 | . . . 7 Hackware 21 | . . 37 19 Ballistic Cannon 5 | . 8 6 . Naked Turns 53 | . 48 . 5 Heaviest Build 8 | . 3 8 1 Greatest Support 3 | 3 3 3 3 Greatest Overweight (x) 2 | . . 2 . Average Overweight (x) . | . . 1 . Largest Inventory Capacity 4 | 4 4 4 4 Average Capacity 4 | 4 4 4 4 Most Carried 2 | 2 2 1 1 Average Carried . | 1 1 . . Final Capacity 4 | 4 4 4 4 Final Carried 2 | 2 1 . . Class Distribution -------------------- 57% | Hacker-Mutant 42% | Mutant Dominant Class ---------------- Mutant | -10/Materials Hacker-Mutant | -9/Materials Hacker-Mutant | -8/Materials Resources | -11 -10 -9 -8 ----------- Run | Scr Mat Mat Mat Matter Collected 246 | 30 . 93 123 Remotely . | . . . . Salvage Created 53 | . 53 . . Parts . | . . . . Haulers Intercepted . | . . . . Recyclers Shooed . | . . . . Parts Field Recycled . | . . . . Retrieved Matter . | . . . . Parts Self-Destructed . | . . . . Prevented . | . . . . Kills | -11 -10 -9 -8 ------- Run | Scr Mat Mat Mat Combat Hostiles Destroyed . | . . . . Classes Destroyed 1 | . 1 . . Recycler 1 | . 1 . . Best Kill Streak 1 | . 1 . . Combat Bots Only . | . . . . Max Kills in Single Turn 1 | . 1 . . Gunslinging . | . . . . Exploded . | . . . . Melee . | . . . . Uniques/NPCs Destroyed . | . . . . Combat | -11 -10 -9 -8 -------- Run | Scr Mat Mat Mat Damage Taken 1234 | . 142 494 598 Core 942 | . 125 253 564 Absorbed by Shields . | . . . . Core Remaining (%) 62 | 100 50 36 . Volleys Fired 3 | . 3 . . Largest 1 | . 1 . . Hottest 35 | . 35 . . Shots Fired 3 | . 3 . . Gun . | . . . . Cannon 3 | . 3 . . Launcher . | . . . . Special . | . . . . Kinetic 3 | . 3 . . Thermal . | . . . . Explosive . | . . . . Electromagnetic . | . . . . Robot Hit Streak 3 | . 3 . . Robot Miss Streak . | . . . . Penetration Max . | . . . . Secondary Targets . | . . . . Shots Hit Robots 3 | . 3 . . Core Hits 1 | . 1 . . Critical Hits . | . . . . Critical Kills . | . . . . Critical Parts Destroyed . | . . . . Melee Attacks . | . . . . Impact . | . . . . Slashing . | . . . . Piercing . | . . . . Sneak Attacks . | . . . . Combat Hostiles . | . . . . Follow-up Attacks . | . . . . Damage Inflicted 53 | . 53 . . Guns . | . . . . Cannons 53 | . 53 . . Explosions . | . . . . Melee . | . . . . Ramming . | . . . . Kinetic 53 | . 53 . . Thermal . | . . . . Explosive . | . . . . Electromagnetic . | . . . . Impact . | . . . . Slashing . | . . . . Piercing . | . . . . Highest Corruption 1 | . 1 1 1 Average Corruption 1 | . 1 1 1 Corruption Purged . | . . . . Overload Shots . | . . . . Overflow Damage . | . . . . Projectiles . | . . . . Explosions . | . . . . Melee . | . . . . Knockbacks 2 | . 2 . . Impact . | . . . . Kinetic 2 | . 2 . . Secondary . | . . . . Self-Inflicted Damage . | . . . . Shots . | . . . . Rammed . | . . . . Targets Rammed . | . . . . Kicked . | . . . . Crushed . | . . . . Highest Temperature . | . . . . Average Temperature . | . . . . Received Heat Transfer 294 | . 9 204 81 Siege Activations . | . . . . Robots Corrupted . | . . . . Combat Hostiles . | . . . . Parts Fried . | . . . . Impact Corruptions . | . . . . Robots Melted . | . . . . Combat Hostiles . | . . . . Parts Melted . | . . . . Heat Transferred . | . . . . Parts Sabotaged . | . . . . Parts Stolen . | . . . . Parts Stripped . | . . . . Power Chain Reactions . | . . . . Missiles Intercepted . | . . . . Alert | -11 -10 -9 -8 ------- Run | Scr Mat Mat Mat Peak Influence 70 | . 70 64 66 Initial 29 | . . 29 22 Average 38 | . 38 48 29 Maximum Alert Level . | . . . . Low Security (%) 100 | 100 100 100 100 Level 1 . | . . . . Level 2 . | . . . . Level 3 . | . . . . Level 4 . | . . . . Level 5 . | . . . . High Security . | . . . . Max Security . | . . . . Squads Dispatched 8 | . 3 3 2 Investigation 2 | . 1 1 . Extermination . | . . . . Reinforcement 5 | . 2 2 1 Assault . | . . . . Garrison 1 | . . . 1 Intercept . | . . . . Construction Impeded . | . . . . Haulers Reinforced . | . . . . Stealth | -11 -10 -9 -8 --------- Run | Scr Mat Mat Mat Distress Signals 10 | . 1 2 7 Communications Jammed . | . . . . Distress Signals . | . . . . Times Spotted 24 | . 4 10 10 Peak Tracking Total 11 | . 3 6 11 Tactical Retreats 2 | . 1 . 1 Traps | -11 -10 -9 -8 ------- Run | Scr Mat Mat Mat Traps Triggered 2 | . 1 1 . Indirectly . | . . . . Trap Hack Attempts . | . . . . Triggered . | . . . . Disarmed . | . . . . Reprogrammed . | . . . . Reused . | . . . . Traps Extracted . | . . . . Installed . | . . . . Triggered . | . . . . Machines | -11 -10 -9 -8 ---------- Run | Scr Mat Mat Mat Machines Disabled . | . . . . Max in Single Turn . | . . . . Machines Sabotaged . | . . . . Garrisons Compromised . | . . . . Overloaded Fab Kills . | . . . . Fab Network Shutdowns . | . . . . Hacking | -11 -10 -9 -8 --------- Run | Scr Mat Mat Mat Machines Accessed 8 | . 2 2 4 Terminals 7 | . 2 1 4 Fabricators . | . . . . Repair Stations . | . . . . Recycling Units 1 | . . 1 . Scanalyzers . | . . . . Garrison Access . | . . . . Total Hacks 20 | . 7 3 10 Successful 13 | . 2 3 8 Failed 7 | . 5 . 2 Catastrophic 2 | . 2 . . Database Lockouts . | . . . . Manual 11 | . 4 1 6 Terminals 18 | . 7 1 10 Fabricators . | . . . . Repair Stations . | . . . . Recycling Units 2 | . . 2 . Scanalyzers . | . . . . Garrison Access . | . . . . Terminal Hacks 10 | . 2 1 7 Terminal Index 1 | . . . 1 Scanalyzer Index 1 | . . . 1 Dispatch Records 2 | . 1 . 1 Zone Layout 6 | . 1 1 4 Fabricator Hacks . | . . . . Repair Station Hacks . | . . . . Recycling Unit Hacks 2 | . . 2 . Report Inventory 1 | . . 1 . Retrieve Components 1 | . . 1 . Scanalyzer . | . . . . Garrison Access Hacks . | . . . . Unauthorized Hacks 1 | . . . 1 Terminals 1 | . . . 1 Operators 1 | . . . 1 Fabricators . | . . . . Repair Stations . | . . . . Recycling Units . | . . . . Scanalyzers . | . . . . Garrison Access . | . . . . Data Cores Recovered . | . . . . Used . | . . . . Hacking Detections 7 | . 2 1 4 Full Trace Events 2 | . 2 . . Feedback Events . | . . . . Feedback Blocked . | . . . . Robot Schematics Acquired . | . . . . Robots Built . | . . . . Matter . | . . . . Time . | . . . . Total Robot Build Rating . | . . . . Part Schematics Acquired . | . . . . Parts Built . | . . . . Matter . | . . . . Time . | . . . . Total Part Build Rating . | . . . . Parts Repaired . | . . . . Time . | . . . . Parts Recycled . | . . . . Recycled Matter . | . . . . Retrieved Matter . | . . . . Retrieved Components 2 | . . 2 . Parts Scanalyzed . | . . . . Part Schematics Acquired . | . . . . Parts Damaged . | . . . . Bothacking | -11 -10 -9 -8 ------------ Run | Scr Mat Mat Mat Used RIF Installer . | . . . . Robots Hacked . | . . . . Non-combat . | . . . . Combat . | . . . . Robot Hacks Applied . | . . . . Relay Couplers Released . | . . . . Robots Rewired . | . . . . Allies Hacked . | . . . . Hacks Repelled . | . . . . Allies | -11 -10 -9 -8 -------- Run | Scr Mat Mat Mat Total Allies . | . . . . Largest Group . | . . . . Highest-Rated Group . | . . . . Highest-Rated Ally . | . . . . Total Orders . | . . . . Ally Attacks . | . . . . Total Damage . | . . . . Kills . | . . . . Allies Corrupted . | . . . . Allies Melted . | . . . . Intel | -11 -10 -9 -8 ------- Run | Scr Mat Mat Mat Robot Analysis Total . | . . . . Derelict Logs Recovered . | . . . . Drone Launches . | . . . . Drone Recoveries . | . . . . Exploration | -11 -10 -9 -8 ------------- Run | Scr Mat Mat Mat Turns Passed 496 | 14 132 190 160 Spaces Moved 593 | 24 190 145 234 Core 593 | 24 190 145 234 Treads . | . . . . Legs . | . . . . Wheels . | . . . . Hover . | . . . . Flight . | . . . . Fastest Speed 50 | 50 50 50 50 Average Speed 66 | 50 50 117 50 Slowest Speed 150 | 50 50 150 50 Overloaded Moves . | . . . . Propulsion Burnouts . | . . . . Robots Hopped . | . . . . Cave-ins Triggered . | . . . . Exploration Rate (%) 25 | 3 39 23 36 Regions Visited 3 Branch Regions . Pre-discovered Areas . | . . . . Known Exits Taken . | . . . . Unknown Exits Taken 3 | 1 1 1 . Scrap Searched . | . . . . Spaces Dug . | . . . . Terrain Destroyed . | . . . . Melee . | . . . . Projectile . | . . . . AOE . | . . . . Terrain Rammed . | . . . . Walls Destroyed . | . . . . Machines Disabled . | . . . . Actions | -11 -10 -9 -8 --------- Run | Scr Mat Mat Mat Total 654 | 25 223 161 245 Wait 48 | . 29 11 8 Move 590 | 23 189 144 234 Hop . | . . . . Pick Up 3 | 2 . . 1 Fast Attach 6 | . 1 4 1 Attach 2 | . . 1 1 Detach . | . . . . Swap . | . . . . Drop 2 | . 1 1 . Fire 3 | . 3 . . Melee . | . . . . Ram . | . . . . Kick . | . . . . Crush . | . . . . Escape Stasis . | . . . . Rewire . | . . . . Trap . | . . . . Miscellaneous . | . . . . Route ------- -11/Scrapyard -10/Materials -9/Materials -8/Materials History --------- Turn | Location | Event 6 | -11/Scrapyard | Discovered new exit (range 15) 15 | -11/Scrapyard | Entered Materials 42 | -10/Materials | Discovered new exit (range 12) 144 | -10/Materials | Discovered new exit (range 7) 147 | -10/Materials | Entered another Materials area 147 | -9/Materials | Evolved 2 slots: Utility x2 326 | -9/Materials | Core integrity fell below 50% 335 | -9/Materials | Discovered new exit (range 4) 337 | -9/Materials | Entered another Materials area 337 | -8/Materials | Evolved 2 slots: Utility x2 402 | -8/Materials | Garrison activated, responded to threat 481 | -8/Materials | Core integrity fell below 50% 495 | -8/Materials | Core integrity fell below 20% 497 | -8/Materials | Destroyed by Minor Abomination with Pulse Rifle Last Messages --------------- 00481_ Minor Abomination feeds off Hungry Anomaly, taking Deuterium Engine. 00481_ Minor Abomination feeds off Hungry Anomaly, taking Particle Cannon. 00481_ Minor Abomination forced to warp away. 00481_ Hungry Anomaly eats Deuterium Engine. 00481_ Hungry Anomaly eats Lgt. Deuterium Engine. 00481_ Connecting with Terminal... >>Layout(Zone) Retrieving Zone 5P layout... Downloaded map data. 00482_ Minor Abomination feeds off Hungry Anomaly, taking Particle Cannon. 00484_ Minor Abomination feeds off Hungry Anomaly, taking Lgt. Armor Plating. 00485_ Minor Abomination feeds off Hungry Anomaly, taking Lgt. Ion Engine. 00487_ Connecting with Terminal... >>Layout(Zone) Retrieving Zone 6A layout... Downloaded map data. 00489_ Scanalyzer disabled. 00492_ Adv. Sensor Array destroyed. 00492_ Hacking Suite destroyed. 00493_ Minor Abomination feeds off Hungry Anomaly, taking Targeting Computer. Map ----- +----------------------------------------------------+ | ######" " #????# "" ????????????????? | | ###????####"" ##???# """ ????????????????? | | ##########"" ##### " ????????????????? | | ## "" % ????????????????? | | % T ##"G #???????????????? | | % ## "" #???????????????? | | ####+##" "#### #???????????????? | | ## """""""#### %#???????????????? | | ## #" # #???????????????? | | ## """ #" "" # #???????????????? | | " ## """ ## """%" #???????????????? | | " ## """ ## S ; +???????????????? | | " ## ## ; #???????????????? | | ## ## """ ; ##??????????????? | | ###?##### """ ; "Y" #######????????? | | #?# #???# """ ; %""" ?????????? | | #?# #???# ;A n ????????? | | " #?# #???######"";; ?????????? | | ###?#######??####;;;;;;; ###????????????? | | # #?????# ;n #??????????????? | | ????????????????????# ; #??????????????? | | ????????????????????# ; #??????????????? | | ????????????????????# ; #####??????????? | | ????????????????????# ; #??????????? | | ????????????????????# ; #??????????? | | ????????????????????#####@;;A ;## + ????????? | | ???????????????????????# ; ;#???# ????????? | | ???????????????????????#;;;; ;#??????????????? | | ??????????????????????? ;#??????????????? | | ??????????????????????; ;#??????????????? | | ????????????????????? ; """ ##??????????????? | | ????????????????????? ; """ #???????????????? | | ???????????????????? ; " " #???????????????? | | ??????????????????? ; ???????????????? | | ?????????????????? ; ??????????????? | | ??????????????????;;;;;;;?##?###??????????????? | | ????????????????? % ?????????????????????? | | ????????????????; ?????????????????????? | | ?????????????????? """""??????????????????????? | | ???????????????????????"??????????????????????? | | ??????????????????????????????????????????????? | | ??????????????????????????????????????????????? | | ??????????????????????????????????????????????? | | | | | | | | | | | | | | | +----------------------------------------------------+ Best States ------------- Heat Dissipation 31 Energy Generation 10 Energy Capacity 250 Matter Stores 264 Matter Capacity 300 Sight Range 16 Robot Scan Range 16 Terrain Scan Density 10 Evasion (%) 50 Offensive Hacking 40 Item Schematics ----------------- None Robot Schematics ------------------ None Fabricated ------------ Nothing Alien Tech Used ----------------- None Achievements -------------- None Challenges ------------ None Game ------ Seed BurstPlasmaCasing Manual? 0 Play Time 00:14:47 Cumulative 52.7 hours Start 2020.09.23 @ 22:38:54 End 2020.09.23 @ 22:50:28 Sessions 1 Manual Loads 0 Difficulty Rogue Special Mode Halloween2019/Abominations Game No. 63 Rogue 40 Adventurer 22 Explorer 1 Win Type - Total 1 Types 1/0/0/0/0/0/0/0/0 Lore% 25 Gallery% 38 Achievement% 31 Wizard Run 0 Options --------- ASCII 0 Keyboard 0 Movement Numpad Keybinds 0 Fullscreen 1 Font 14/SmallcapsGlow Map View 84x54 Tactical HUD 1 Map Filters NONE Filters NONE Steam 1 RUN: 11f25f65-5fa2-4a0b-b59c-da4941b0b1a4